bitfinex/quotes_SOLUSD_20260223
["timestamp","ask_amount","ask_price","bid_price","bid_amount"]
[1771830790121,0.38601289,79.347,79.311,1.07991197]
[1771830790332,0.38601289,79.347,79.305,12.60945806]
[1771830790333,12.6027121,79.348,79.321,1.07991197]
[1771830790936,0.38500793,79.339,79.313,1.07991197]
[1771830791133,5.27937995,79.33,79.307,1.07991197]
[1771830791322,0.38500793,79.33,79.307,1.07991197]
[1771830792938,0.38500793,79.33,79.307,13.68904665]
[1771830793846,0.3820018,79.328,79.3,1.07991197]
[1771830795041,0.3820018,79.328,79.29,4.89437202]
[1771830795042,0.3820018,79.328,79.302,1.07991197]
[1771830795236,12.60520223,79.333,79.302,1.07991197]
[1771830795829,12.60443574,79.338,79.311,1.07991197]
[1771830796027,3.69383402,79.346,79.311,1.07991197]
[1771830796223,12.60287093,79.347,79.321,1.07991197]
[1771830797347,12.60287093,79.347,79.322,1.07991197]
[1771830798342,55.70681129,79.349,79.322,1.07991197]
[1771830800330,55.70681129,79.349,79.321,12.60691597]
[1771830800331,55.70681129,79.349,79.324,1.0978196]
[1771830802047,0.37286032,79.348,79.324,1.0978196]
[1771830802253,55.70681129,79.349,79.324,1.0978196]
[1771830802952,55.70681129,79.349,79.326,1.0978196]
[1771830804046,33.95567538,79.349,79.327,1.0978196]
[1771830805853,33.95567538,79.349,79.331,1.0978196]
[1771830807562,28.36248668,79.349,79.33,4.889643]
[1771830807751,6.59378435,79.393,79.348,1.0978196]
[1771830808052,19.18942694,79.393,79.371,1.0978196]
[1771830808439,19.18942694,79.393,79.344,44.11171606]
[1771830808641,4.889643,79.36,79.343,1.0978196]
[1771830808844,0.46714859,79.359,79.327,1.0978196]
[1771830809644,0.46714859,79.359,79.328,1.0978196]
[1771830809839,4.889643,79.37,79.331,1.0978196]
[1771830809840,0.46643207,79.368,79.331,1.0978196]
[1771830811570,0.46502101,79.359,79.331,1.0978196]
[1771830811945,0.46502101,79.357,79.331,1.0978196]
[1771830812265,12.60017136,79.364,79.333,1.0978196]
[1771830812767,0.4643265,79.363,79.333,1.0978196]
[1771830813668,5.35328332,79.36,79.333,1.0978196]
[1771830814172,0.46364032,79.36,79.335,1.0978196]
[1771830814863,12.60096523,79.359,79.335,1.0978196]
[1771830816475,0.46228978,79.366,79.335,1.0978196]
[1771830817448,0.46228978,79.366,79.337,1.0978196]
[1771830820852,0.45903345,79.364,79.337,1.0978196]
[1771830822468,12.60033012,79.363,79.338,12.60430058]
[1771830822667,13.05808986,79.363,79.339,1.0978196]
[1771830823251,0.45775974,79.362,79.339,1.0978196]
[1771830823455,0.45715031,79.368,79.339,1.0978196]
[1771830823656,0.45715031,79.367,79.339,1.0978196]
[1771830825275,0.45651565,79.365,79.339,1.0978196]
[1771830826576,25.43520049,79.369,79.341,1.0978196]
[1771830827279,25.43520049,79.369,79.343,1.0978196]
[1771830829171,25.43520049,79.369,79.344,12.60334744]
[1771830829380,25.43520049,79.369,79.345,1.03972183]
[1771830830655,4.989643,79.44,79.351,1.03972183]
[1771830830656,1.09642826,79.378,79.351,1.03972183]
[1771830831354,18.91829572,79.404,79.351,1.03972183]
[1771830831355,1.09642826,79.376,79.351,1.03972183]
[1771830831576,1.09642826,79.376,79.345,1.03972183]
[1771830831881,12.59810776,79.377,79.345,1.03972183]
[1771830831882,1.09642826,79.369,79.345,1.03972183]
[1771830832563,1.09642826,79.369,79.346,13.64275159]
[1771830833379,1.09642826,79.369,79.347,1.03972183]
[1771830833874,1.09642826,79.369,79.349,1.03972183]
[1771830836780,1.09642826,79.368,79.349,1.03972183]
[1771830838971,1.09642826,79.368,79.35,1.03972183]
[1771830840272,1.09642826,79.367,79.346,1.03972183]
[1771830840987,1.09642826,79.367,79.348,1.03972183]
[1771830845394,12.59985384,79.366,79.348,1.03972183]
[1771830845577,1.09642826,79.359,79.331,1.03972183]
[1771830845774,1.09642826,79.359,79.326,1.03972183]
[1771830846279,1.09642826,79.359,79.315,12.60785259]
[1771830846594,1.09642826,79.339,79.303,31.52442673]
[1771830846974,1.09642826,79.339,79.31,4.889643]
[1771830847580,1.09642826,79.339,79.311,12.60859149]
[1771830847988,1.09642826,79.338,79.311,12.60859149]
[1771830848387,1.09642826,79.338,79.312,0.83352452]
[1771830849298,1.09642826,79.329,79.296,13.44523973]
[1771830849496,1.09642826,79.329,79.297,0.83426314]
[1771830849819,1.09642826,79.329,79.296,12.61097659]
[1771830849820,1.09642826,79.329,79.301,0.83496745]
[1771830852406,1.09642826,79.329,79.302,12.61002244]
[1771830852579,1.09642826,79.329,79.303,0.83711047]
[1771830855804,1.09642826,79.327,79.297,0.83914551]
[1771830856908,1.09642826,79.319,79.297,0.83914551]
[1771830857078,1.09642826,79.319,79.286,0.83981872]
[1771830857285,1.09642826,79.299,79.269,0.83981872]
[1771830857489,1.05754071,79.324,79.29,4.889643]
[1771830857701,23.12647091,79.327,79.301,0.84115237]
[1771830858084,12.60620729,79.326,79.301,0.84115237]
[1771830860404,1.12363413,79.325,79.297,12.61065891]
[1771830860710,1.12363413,79.325,79.295,12.61113563]
[1771830861281,1.12363413,79.319,79.295,12.61113563]
[1771830862198,1.12363413,79.319,79.296,0.84425857]
[1771830864107,1.12363413,79.317,79.296,0.84425857]
[1771830864611,1.12363413,79.317,79.293,12.61134333]
[1771830864814,1.12363413,79.317,79.284,0.84599697]
[1771830865494,1.12363413,79.309,79.277,0.84599697]
[1771830865700,1.12363413,79.309,79.28,4.89207696]
[1771830865882,1.12363413,79.309,79.281,0.8466039]
[1771830867788,1.12363413,79.307,79.281,0.8466039]
[1771830870408,1.12363413,79.307,79.283,0.84885727]
[1771830871101,1.12363413,79.305,79.283,0.84885727]
[1771830873304,1.12363413,79.313,79.29,4.89207696]
[1771830873511,1.12363413,79.32,79.291,0.85049206]
[1771830877492,1.12363413,79.318,79.293,0.85313592]
[1771830878411,1.12363413,79.318,79.284,12.6127788]
[1771830880499,1.12363413,79.316,79.284,12.6127788]
[1771830881716,1.12363413,79.309,79.271,0.85513026]
[1771830881905,1.12363413,79.309,79.281,0.85513026]
[1771830882107,23.12647091,79.317,79.291,0.85513026]
[1771830882108,1.12363413,79.316,79.291,0.85513026]
[1771830883213,1.12363413,79.315,79.291,0.85513026]
[1771830884709,1.12363413,79.315,79.292,12.61161277]
[1771830884915,1.12363413,79.315,79.291,0.85513026]
[1771830884916,1.12363413,79.315,79.293,0.85652083]
[1771830886192,1.12363413,79.326,79.293,0.85652083]
[1771830886894,4.89207696,79.33,79.295,0.85740734]
[1771830886895,1.12363413,79.324,79.295,0.85740734]
[1771830889102,12.60668406,79.323,79.294,12.61129467]
[1771830889310,1.13258178,79.322,79.294,12.61129467]
[1771830890297,1.13258178,79.322,79.291,0.85916269]
[1771830891310,12.60700192,79.321,79.292,12.61161277]
[1771830891514,1.13258178,79.32,79.293,0.85959054]
[1771830893727,1.13258178,79.325,79.301,0.86078922]
[1771830894921,1.13258178,79.325,79.295,0.86119885]
[1771830895901,1.13258178,79.323,79.296,13.47258317]
[1771830896115,1.13258178,79.323,79.297,0.86160658]
[1771830898727,1.13258178,79.321,79.297,0.86160658]
[1771830900228,1.13258178,79.321,79.299,0.86320251]
[1771830900427,1.13258178,79.326,79.301,0.86358575]
[1771830900932,1.13258178,79.326,79.303,0.86358575]
[1771830901309,12.60484344,79.335,79.311,0.86358575]
[1771830901515,1.13258178,79.334,79.311,0.86358575]
[1771830902430,1.13258178,79.332,79.311,0.86358575]
[1771830904032,1.17928593,79.319,79.27,4.89207696]
[1771830904233,1.17928593,79.299,79.26,4.89207696]
[1771830905238,1.17928593,79.299,79.27,4.89207696]
[1771830906426,1.17928593,79.299,79.271,44.15233817]
[1771830908534,15.2244617,79.33,79.271,44.15233817]
[1771830908535,1.17928593,79.312,79.271,44.15233817]
[1771830908740,1.17928593,79.312,79.29,4.89207696]
[1771830908939,1.17928593,79.312,79.28,4.89207696]
[1771830909836,12.60853876,79.312,79.281,12.61336259]
[1771830910147,1.17928593,79.311,79.281,44.14676908]
[1771830911845,4.89207696,79.32,79.281,44.14676908]
[1771830911846,1.17928593,79.31,79.281,12.61336259]
[1771830912425,1.17928593,79.309,79.281,12.61336259]
[1771830913648,1.17928593,79.299,79.261,31.54118033]
[1771830913840,1.17928593,79.289,79.24,0.2]
[1771830914032,1.17928593,79.287,79.25,4.89207696]
[1771830915553,1.17928593,79.285,79.25,4.89207696]
[1771830917431,1.17928593,79.299,79.26,4.89207696]
[1771830917949,1.17928593,79.289,79.251,44.16348058]
[1771830919548,1.17928593,79.287,79.251,44.16348058]
[1771830920153,1.17928593,79.287,79.251,12.61813731]
[1771830920654,1.17928593,79.279,79.251,44.16348058]
[1771830922055,1.17928593,79.279,79.25,4.89766857]
[1771830922237,1.17928593,79.277,79.25,4.89766857]
[1771830923351,1.17928593,79.283,79.25,4.89766857]
[1771830923557,13.79138497,79.289,79.26,4.89766857]
[1771830923960,1.17928593,79.289,79.26,4.89766857]
[1771830924156,1.17928593,79.289,79.261,12.61654533]
[1771830924554,1.17928593,79.287,79.261,12.61654533]
[1771830926061,1.17928593,79.296,79.261,44.15790867]
[1771830927459,1.17928593,79.295,79.261,44.15790867]
[1771830928560,1.17928593,79.295,79.261,12.61654533]
[1771830928758,1.17928593,79.295,79.261,44.15790867]
[1771830929065,1.17928593,79.295,79.27,4.89766857]
[1771830929842,1.17928593,79.295,79.26,4.89766857]
[1771830931264,1.17928593,79.295,79.261,44.15790867]
[1771830931565,1.17928593,79.294,79.261,44.15790867]
[1771830931792,1.17928593,79.294,79.261,12.61654533]
[1771830932163,1.17928593,79.289,79.25,4.89766857]
[1771830933564,1.17928593,79.287,79.251,12.61813731]
[1771830934666,1.17928593,79.285,79.251,12.61813731]
[1771830936661,1.17928593,79.283,79.251,12.61813731]
[1771830938666,1.17928593,79.281,79.251,12.61813731]
[1771830938852,1.17928593,79.279,79.243,12.61928759]
[1771830940557,1.17928593,79.277,79.243,12.61928759]
[1771830943573,1.17928593,79.275,79.243,12.61928759]
[1771830944867,1.17928593,79.273,79.243,12.61928759]
[1771830945572,1.17928593,79.269,79.243,12.61928759]
[1771830946276,1.17928593,79.268,79.243,12.61928759]
[1771830947559,1.17928593,79.268,79.25,4.89766857]
[1771830948679,1.17928593,79.266,79.243,12.6193274]
[1771830950280,1.17928593,79.266,79.241,12.61972968]
[1771830950475,23.12647091,79.279,79.241,12.61972968]
[1771830950679,23.12647091,79.279,79.24,0.2]
[1771830950870,4.89766857,79.27,79.24,0.2]
[1771830952373,44.15345216,79.269,79.24,0.2]
[1771830952574,1.12378105,79.268,79.24,0.2]
[1771830953377,1.12378105,79.268,79.241,1.07311989]
[1771830956382,1.12378105,79.266,79.241,1.07311989]
[1771830959468,12.61590866,79.265,79.241,1.07311989]
[1771830961296,35.74237957,79.265,79.241,1.07311989]
[1771830961591,1.12378105,79.262,79.241,1.07311989]
[1771830962086,1.12378105,79.262,79.24,0.2]
[1771830962289,4.89766857,79.26,79.23,0.2]
[1771830962466,1.12378105,79.259,79.23,0.2]
[1771830962667,1.12378105,79.257,79.215,1.07311989]
[1771830962986,1.12378105,79.239,79.21,0.2]
[1771830963566,12.62020747,79.238,79.21,0.2]
[1771830963766,1.12378105,79.237,79.21,0.2]
[1771830965318,12.62020747,79.238,79.172,1.07311989]
[1771830965319,1.12378105,79.219,79.172,1.07311989]
[1771830965471,1.12378105,79.199,79.171,1.07311989]
[1771830965681,1.12378105,79.189,79.16,0.2]
[1771830965888,12.62658147,79.198,79.17,4.89766857]
[1771830966212,1.12378105,79.201,79.18,4.89766857]
[1771830966582,1.12378105,79.199,79.18,4.89766857]
[1771830966796,1.12378105,79.199,79.17,4.89766857]
[1771830967691,1.12378105,79.199,79.18,4.89766857]
[1771830968400,1.12378105,79.197,79.17,4.89766857]
[1771830968589,1.12378105,79.197,79.16,5.09766857]
[1771830968780,1.12378105,79.195,79.16,5.09766857]
[1771830968981,1.12378105,79.189,79.16,0.2]
[1771830970590,1.12378105,79.187,79.16,0.2]
[1771830971784,1.12378105,79.187,79.161,0.41124342]
[1771830971995,1.12378105,79.187,79.161,13.04372658]
[1771830972403,1.12378105,79.169,79.125,3.69383402]
[1771830972581,3.69383402,79.157,79.112,0.41124342]
[1771830972786,11.50366857,79.16,79.121,0.41355199]
[1771830972987,6.606,79.16,79.131,0.41355199]
[1771830973187,1.12378105,79.159,79.131,0.41355199]
[1771830973683,1.12378105,79.159,79.13,4.89766857]
[1771830973880,1.12378105,79.159,79.111,44.24163516]
[1771830973881,1.12378105,79.159,79.123,0.41579744]
[1771830974194,1.12378105,79.159,79.13,5.31346601]
[1771830974683,1.12378105,79.159,79.14,4.89766857]
[1771830974883,19.23869111,79.16,79.14,5.31568683]
[1771830975083,1.12378105,79.159,79.133,0.41801826]
[1771830975308,1.12378105,79.159,79.127,0.41801826]
[1771830975514,1.12378105,79.159,79.125,12.63813367]
[1771830975890,1.12378105,79.159,79.126,0.42021467]
[1771830976788,1.12378105,79.159,79.131,0.42242073]
[1771830977405,6.606,79.16,79.131,0.42242073]
[1771830977610,6.006,79.16,79.132,0.42888898]
[1771830977892,6.006,79.16,79.141,0.42888898]
[1771830978094,13.75569657,79.165,79.141,0.42888898]
[1771830978507,1.12378105,79.165,79.141,0.42888898]
[1771830978815,17.52886001,79.17,79.142,12.6355159]
[1771830978816,6.06882842,79.17,79.142,12.6355159]
[1771830979000,1.17115985,79.169,79.142,12.6355159]
[1771830979391,13.8023665,79.169,79.137,12.63628974]
[1771830979702,1.17115985,79.159,79.131,0.43099512]
[1771830979886,4.89766857,79.16,79.132,0.4330815]
[1771830980292,1.17115985,79.165,79.132,0.4330815]
[1771830980917,1.17115985,79.165,79.134,0.43510581]
[1771830981614,6.08341882,79.16,79.134,0.43510581]
[1771830981988,1.17115985,79.16,79.134,0.43510581]
[1771830982491,6.08341882,79.16,79.134,0.43510581]
[1771830982992,4.91225897,79.16,79.134,0.43510581]
[1771830983919,1.17115985,79.165,79.136,0.44111915]
[1771830985093,4.91225897,79.24,79.161,0.44305159]
[1771830985298,1.17115985,79.21,79.181,0.44305159]
[1771830985489,1.17115985,79.209,79.181,0.44305159]
[1771830985813,1.17115985,79.209,79.175,0.44305159]
[1771830985996,1.17115985,79.209,79.177,0.44499973]
[1771830987313,1.17115985,79.209,79.179,0.44692439]
[1771830988525,1.17115985,79.209,79.178,12.50699528]
[1771830990203,1.17115985,79.209,79.18,4.91225897]
[1771830991811,6.59301875,79.215,79.18,4.91225897]
[1771830992010,6.59301875,79.215,79.19,4.91225897]
[1771830992819,6.59301875,79.215,79.191,12.62769759]
[1771830993226,6.59301875,79.215,79.191,44.19694156]
[1771830993821,4.25518134,79.215,79.2,4.91225897]
[1771830994437,4.25518134,79.215,79.191,44.19694156]
[1771830994936,4.25518134,79.215,79.2,4.91225897]
[1771830995439,1.18124712,79.224,79.2,4.91225897]
[1771830995637,1.18124712,79.237,79.21,4.91225897]
[1771830996705,1.18124712,79.242,79.211,0.02086471]
[1771830997029,1.18124712,79.25,79.222,0.02086471]
[1771830997809,3.69383402,79.272,79.18,4.91225897]
[1771830997810,1.18124712,79.229,79.18,4.91225897]
[1771830998011,1.18124712,79.227,79.191,0.02283307]
[1771830998732,1.18124712,79.235,79.201,0.02477441]
[1771830999135,1.18124712,79.235,79.202,0.02477441]
[1771830999633,1.18124712,79.242,79.211,0.02477441]
[1771831001633,1.18124712,79.242,79.211,12.64928363]
[1771831003234,1.18124712,79.242,79.212,0.03247106]
[1771831011414,1.18124712,79.239,79.19,0.04845165]
[1771831015826,1.18124712,79.229,79.188,44.19861594]
[1771831016514,1.18124712,79.229,79.183,0.05667025]
[1771831017132,1.18124712,79.219,79.183,0.05667025]
[1771831017315,1.18124712,79.219,79.177,0.05823603]
[1771831020638,1.18124712,79.219,79.172,0.06441029]
[1771831020838,4.90162973,79.23,79.172,0.06441029]
[1771831021043,12.62164106,79.229,79.172,0.06441029]
[1771831021229,12.62018031,79.239,79.172,0.06441029]
[1771831021429,4.90162973,79.23,79.172,0.06441029]
[1771831021821,102.4,79.238,79.172,0.06441029]
[1771831022222,4.90162973,79.23,79.172,0.06441029]
[1771831022419,4.90162973,79.25,79.175,1.11904609]
[1771831022730,1.15738654,79.249,79.175,1.11904609]
[1771831026542,4.90162973,79.25,79.18,1.11904609]
[1771831026543,1.15738654,79.247,79.18,1.11904609]
[1771831028351,3.69383402,79.272,79.18,1.11904609]
[1771831028352,12.61446032,79.275,79.184,1.11904609]
[1771831028527,4.90162973,79.27,79.189,1.11904609]
[1771831030227,1.15738654,79.259,79.189,1.11904609]
[1771831030429,1.15738654,79.249,79.193,3.69383402]
[1771831030749,1.15738654,79.249,79.194,1.11904609]
[1771831032658,1.15738654,79.268,79.199,1.11904609]
[1771831035464,1.15738654,79.268,79.201,1.11904609]
[1771831036444,1.15738654,79.268,79.204,1.11904609]
[1771831037557,1.15738654,79.268,79.209,1.20611327]
[1771831037938,1.15241155,79.267,79.209,1.20611327]
[1771831038145,1.15241155,79.259,79.209,1.20611327]
[1771831039953,102.4,79.274,79.208,3.69383402]
[1771831039954,102.4,79.274,79.211,1.20611327]
[1771831040149,4.90162973,79.27,79.211,1.20611327]
[1771831041938,1.15241155,79.269,79.213,1.20611327]
[1771831043547,1.15241155,79.259,79.213,1.20611327]
[1771831043757,4.89929629,79.27,79.213,1.20611327]
[1771831043966,1.15241155,79.269,79.215,1.20611327]
[1771831046179,1.15241155,79.269,79.217,1.20611327]
[1771831046874,101.52348838,79.274,79.22,1.20611327]
[1771831048768,0.23442083,79.273,79.222,1.20611327]
[1771831050366,0.23442083,79.273,79.223,107.29207426]
[1771831050568,0.23442083,79.273,79.224,1.20611327]
[1771831051969,0.23442083,79.273,79.226,1.20611327]
[1771831053367,0.2502343,79.269,79.226,1.20611327]
[1771831054069,12.61479463,79.272,79.196,62.0]
[1771831054070,0.2540933,79.258,79.227,44.17685889]
[1771831055757,0.2540933,79.258,79.225,1.20611327]
[1771831057751,0.2540933,79.258,79.226,12.622119]
[1771831057952,0.2540933,79.258,79.226,13.82823227]
[1771831058255,101.52348838,79.299,79.227,1.20611327]
[1771831058591,4.89929629,79.29,79.227,1.20611327]
[1771831058761,4.89929629,79.28,79.227,1.20611327]
[1771831059584,4.89929629,79.28,79.228,44.1763013]
[1771831059749,4.89929629,79.28,79.229,1.2675279]
[1771831060472,0.02258967,79.279,79.229,1.2675279]
[1771831060773,0.02258967,79.285,79.229,1.2675279]
[1771831063784,0.02258967,79.285,79.231,1.2675279]
[1771831065482,0.02258967,79.285,79.233,1.2675279]
[1771831069564,0.02258967,79.285,79.235,1.2675279]
[1771831072277,0.02258967,79.285,79.237,1.2675279]
[1771831073986,0.02258967,79.285,79.239,1.2675279]
[1771831075394,0.02258967,79.285,79.24,44.1696113]
[1771831075581,0.02258967,79.285,79.241,1.2675279]
[1771831076494,12.61208994,79.289,79.24,44.1696113]
[1771831076495,0.08073134,79.269,79.24,44.1696113]
[1771831076964,0.08073134,79.269,79.241,1.2675279]
[1771831078993,0.08073134,79.269,79.242,12.61957042]
[1771831079394,0.08073134,79.269,79.242,13.88709832]
[1771831079888,0.08073134,79.269,79.242,12.61957042]
[1771831080086,0.08073134,79.269,79.243,1.2675279]
[1771831080893,0.095772,79.316,79.243,1.2675279]
[1771831081196,12.6076852,79.317,79.251,1.2675279]
[1771831081197,0.095772,79.299,79.251,1.2675279]
[1771831082588,0.095772,79.299,79.25,3.69383402]
[1771831082589,0.1,79.32,79.253,1.2675279]
[1771831082782,0.10155257,79.349,79.257,1.2675279]
[1771831082977,6.59071294,79.346,79.262,1.2675279]
[1771831083178,0.10155257,79.345,79.269,1.2675279]
[1771831083395,0.10155257,79.345,79.274,1.2675279]
[1771831083575,0.10155257,79.345,79.279,1.2675279]
[1771831084997,0.10155257,79.345,79.284,1.2675279]
[1771831087183,0.10155257,79.345,79.289,1.2675279]
[1771831090398,0.10155257,79.345,79.291,1.2675279]
[1771831093710,0.10155257,79.345,79.293,1.2675279]
[1771831095890,0.13598771,79.343,79.295,1.2675279]
[1771831096991,0.13839528,79.339,79.295,1.2675279]
[1771831098308,0.13839528,79.339,79.297,1.30270573]
[1771831098485,0.1,79.35,79.3,1.30270573]
[1771831098692,0.1,79.36,79.301,1.30270573]
[1771831098896,0.14791734,79.359,79.301,1.30270573]
[1771831100508,0.1,79.36,79.306,1.30270573]
[1771831101607,0.1,79.36,79.308,1.30270573]
[1771831102613,0.1,79.36,79.31,1.30270573]
[1771831107116,0.1,79.36,79.314,3.69383402]
[1771831107322,0.1,79.36,79.315,1.30270573]
[1771831107710,0.1,79.36,79.316,1.30270573]
[1771831108823,0.16965817,79.359,79.316,1.30270573]
[1771831109200,0.1,79.36,79.321,1.35235699]
[1771831111421,0.1,79.36,79.323,1.35235699]
[1771831113425,0.1,79.36,79.325,1.35235699]
[1771831113728,12.59715556,79.383,79.326,1.35235699]
[1771831113922,101.52348838,79.384,79.328,1.35235699]
[1771831116710,114.1205109,79.384,79.33,1.35235699]
[1771831118230,31.48605429,79.401,79.329,107.14870979]
[1771831118231,101.52348838,79.409,79.334,1.35235699]
[1771831118428,12.59375347,79.405,79.335,1.35235699]
[1771831118636,0.02067205,79.398,79.341,1.35235699]
[1771831119445,0.02067205,79.398,79.34,3.69383402]
[1771831119446,4.88566504,79.4,79.354,1.36269301]
[1771831119736,4.88566504,79.39,79.346,1.36269301]
[1771831120121,44.07560855,79.409,79.346,1.36269301]
[1771831120122,4.88566504,79.4,79.346,1.36269301]
[1771831123819,12.59461706,79.399,79.347,44.11004826]
[1771831124042,12.59461706,79.399,79.348,1.36269301]
[1771831125743,44.08115971,79.399,79.348,1.36269301]
[1771831125920,12.5962035,79.389,79.349,12.60255327]
[1771831126238,12.5962035,79.389,79.349,44.10893646]
[1771831128543,12.5962035,79.389,79.349,1.36269301]
[1771831128731,0.02028216,79.388,79.349,1.36269301]
[1771831129135,0.02028216,79.387,79.349,1.36269301]
[1771831130736,0.02028216,79.387,79.35,13.96508746]
[1771831130948,101.52348838,79.386,79.35,45.47107359]
[1771831131147,0.02369792,79.385,79.35,45.47107359]
[1771831131645,0.02369792,79.383,79.35,45.47107359]
[1771831131843,0.02369792,79.383,79.35,44.10838058]
[1771831132138,0.02538273,79.379,79.35,12.57701191]
[1771831133151,12.59779034,79.379,79.341,12.603824]
[1771831133648,12.59779034,79.379,79.341,44.113384]
[1771831133848,4.88566504,79.38,79.341,44.113384]
[1771831134045,12.59701304,79.384,79.341,44.113384]
[1771831134550,12.59701304,79.384,79.341,45.48876828]
[1771831135046,12.59701304,79.384,79.342,1.37538428]
[1771831135234,12.61528911,79.383,79.343,44.11227202]
[1771831135748,12.61528911,79.383,79.343,45.4876563]
[1771831137357,12.61528911,79.383,79.338,1.37538428]
[1771831141057,12.61528911,79.383,79.33,63.02782946]
[1771831141058,12.61528911,79.383,79.34,1.37538428]
[1771831142250,12.61528911,79.383,79.342,1.37538428]
[1771831142643,101.52348838,79.382,79.342,1.37538428]
[1771831144559,101.52348838,79.382,79.344,1.37538428]
[1771831144757,0.02038421,79.381,79.344,1.37538428]
[1771831145862,0.02038421,79.381,79.346,1.37538428]
[1771831146061,12.61528911,79.38,79.346,1.37538428]
[1771831146366,48.12301466,79.38,79.347,1.38628241]
[1771831146567,3.69383402,79.405,79.346,1.38628241]
[1771831146760,102.4,79.399,79.346,1.38628241]
[1771831146968,106.09383402,79.405,79.346,1.38628241]
[1771831147562,12.59382398,79.404,79.348,1.38628241]
[1771831149868,12.59382398,79.404,79.35,1.38628241]
[1771831150072,4.88566504,79.39,79.339,1.38628241]
[1771831150252,102.4,79.389,79.339,1.38628241]
[1771831151255,102.4,79.389,79.342,1.38628241]
[1771831154378,12.5941412,79.402,79.343,44.11227202]
[1771831154674,12.5941412,79.402,79.344,1.38628241]
[1771831156077,4.88566504,79.39,79.344,1.38628241]
[1771831156376,4.88566504,79.4,79.344,1.38628241]
[1771831156563,12.59445843,79.4,79.346,1.38628241]
[1771831158057,102.4,79.403,79.346,1.38628241]
[1771831158684,102.4,79.403,79.348,1.38628241]
[1771831159578,0.1,79.41,79.35,3.69383402]
[1771831159891,12.59303101,79.409,79.351,1.38628241]
[1771831161361,4.88566504,79.4,79.353,1.38628241]
[1771831161768,102.4,79.409,79.353,1.38628241]
[1771831163274,12.5931896,79.408,79.355,1.38628241]
[1771831165785,12.5931896,79.408,79.357,1.38628241]
[1771831166777,102.4,79.409,79.357,1.38628241]
[1771831167883,102.4,79.409,79.359,1.38628241]
[1771831169188,12.5931896,79.408,79.359,1.38628241]
[1771831170084,102.4,79.409,79.361,1.38628241]
[1771831170469,114.99308047,79.409,79.361,1.38628241]
[1771831171486,146.47565801,79.409,79.361,1.38628241]
[1771831172184,146.47565801,79.409,79.363,1.38628241]
[1771831173886,102.4,79.409,79.363,1.38628241]
[1771831174085,102.4,79.409,79.365,1.38628241]
[1771831175487,12.5931896,79.408,79.366,44.09948844]
[1771831175688,4.88342854,79.4,79.366,12.59985384]
[1771831175984,4.88342854,79.4,79.356,12.6014416]
[1771831176191,3.69383402,79.396,79.356,12.6014416]
[1771831176395,4.88342854,79.39,79.356,12.6014416]
[1771831177597,4.88342854,79.39,79.342,1.38628241]
[1771831177785,4.88342854,79.38,79.315,1.38628241]
[1771831178997,4.88342854,79.37,79.315,1.38628241]
[1771831179895,44.09782156,79.369,79.317,1.38628241]
[1771831182686,44.09893279,79.367,79.318,12.60747875]
[1771831182885,44.09893279,79.367,79.319,1.38628241]
[1771831185898,12.6000126,79.365,79.321,1.38628241]
[1771831189210,12.60033012,79.363,79.322,12.60684299]
[1771831189400,12.60033012,79.363,79.323,1.38628241]
[1771831190193,44.10115544,79.363,79.323,1.38628241]
[1771831191603,4.88342854,79.36,79.318,1.38628241]
[1771831192483,102.4,79.359,79.318,1.38628241]
[1771831193784,102.4,79.359,79.32,1.38628241]
[1771831193785,12.60112402,79.358,79.32,1.38628241]
[1771831194298,44.10393407,79.358,79.32,1.38628241]
[1771831196087,44.10393407,79.358,79.322,1.38628241]
[1771831197212,3.69383402,79.355,79.322,1.38628241]
[1771831198297,115.0017592,79.354,79.322,1.38628241]
[1771831199713,146.50615721,79.354,79.322,1.38628241]
[1771831200009,4.88342854,79.34,79.306,1.38628241]
[1771831200306,4.88342854,79.33,79.294,1.38628241]
[1771831200516,3.69383402,79.336,79.283,1.38628241]
[1771831200517,4.88342854,79.31,79.283,1.38628241]
[1771831200889,3.69383402,79.336,79.283,1.38628241]
[1771831201095,12.60348558,79.344,79.283,1.38628241]
[1771831201488,19.19392769,79.353,79.283,1.38628241]
[1771831201700,12.60201388,79.353,79.283,1.38628241]
[1771831202512,3.69383402,79.359,79.285,1.38628241]
[1771831203693,3.69383402,79.355,79.287,1.38628241]
[1771831205311,12.60112402,79.358,79.287,1.38628241]
[1771831206296,3.69383402,79.355,79.289,1.38628241]
[1771831207119,102.4,79.354,79.289,1.38628241]
[1771831211434,12.60191801,79.353,79.291,1.38628241]
[1771831211724,102.4,79.352,79.291,1.38628241]
[1771831212608,12.60223563,79.351,79.293,1.38628241]
[1771831212812,4.88342854,79.35,79.293,1.38628241]
[1771831213424,85.76706596,79.352,79.293,1.38628241]
[1771831213635,4.88342854,79.35,79.295,1.38628241]
[1771831214121,85.76706596,79.352,79.295,1.38628241]
[1771831214502,12.60255327,79.349,79.295,1.38628241]
[1771831216024,85.76706596,79.348,79.297,1.38628241]
[1771831218827,85.76706596,79.348,79.299,1.38628241]
[1771831219144,4.88342854,79.31,79.279,1.38628241]
[1771831219434,4.88342854,79.3,79.272,1.38628241]